bitfinex/quotes_BTCUSD_20220115
["timestamp","ask_amount","ask_price","bid_price","bid_amount"]
[1642208202869,0.376243,43116.0,43112.0,6.71e-05]
[1642208206020,0.00967114,43115.0,43112.0,6.71e-05]
[1642208209254,0.00967114,43117.0,43112.0,6.71e-05]
[1642208209655,0.376243,43116.0,43112.0,6.71e-05]
[1642208213006,0.00967114,43115.0,43112.0,6.71e-05]
[1642208216555,0.00967114,43117.0,43112.0,6.71e-05]
[1642208217357,0.00967114,43117.0,43115.0,0.44754451]
[1642208218858,0.00967114,43117.0,43112.0,6.71e-05]
[1642208219355,0.003,43120.0,43112.0,6.71e-05]
[1642208219356,0.00967114,43119.0,43112.0,6.71e-05]
[1642208220614,0.00967114,43119.0,43113.0,0.36182899]
[1642208225160,0.00602661,43121.0,43115.0,0.25712489]
[1642208225460,0.47111752,43122.0,43115.0,0.25712489]
[1642208225661,0.376243,43121.0,43115.0,0.25712489]
[1642208226165,0.72059086,43122.0,43115.0,0.25712489]
[1642208226363,0.376243,43121.0,43113.0,0.36182899]
[1642208226763,0.31956425,43122.0,43113.0,0.36182899]
[1642208227164,0.04109091,43122.0,43114.0,0.2829764]
[1642208227704,0.01009091,43122.0,43114.0,0.52852668]
[1642208227904,0.01009091,43122.0,43114.0,0.24976587]
[1642208228105,0.01009091,43122.0,43114.0,0.52850186]
[1642208229609,0.003,43127.0,43121.0,0.31414897]
[1642208229809,0.5651,43128.0,43121.0,0.31414897]
[1642208229810,0.5631,43128.0,43123.0,0.09]
[1642208230008,0.5631,43128.0,43125.0,0.00129631]
[1642208230207,0.31079091,43132.0,43125.0,0.00129631]
[1642208230208,0.376243,43127.0,43125.0,0.00129631]
[1642208230409,0.148,43128.0,43125.0,0.00129631]
[1642208230608,0.148,43128.0,43126.0,0.459838]
[1642208230808,0.376243,43127.0,43126.0,0.459838]
[1642208231109,0.148,43128.0,43126.0,0.459838]
[1642208231759,0.31079091,43132.0,43126.0,0.74218646]
[1642208231956,0.00909091,43132.0,43126.0,0.74218646]
[1642208233156,0.00909091,43132.0,43126.0,0.459838]
[1642208233556,0.00909091,43132.0,43127.0,0.28837328]
[1642208234157,0.00909091,43132.0,43127.0,0.38957385]
[1642208234362,0.00909091,43132.0,43127.0,0.10120057]
[1642208234558,0.00909091,43132.0,43128.0,0.376243]
[1642208236443,0.00909091,43132.0,43128.0,0.68950886]
[1642208238544,0.00909091,43132.0,43128.0,0.69750886]
[1642208239566,0.00909091,43132.0,43128.0,0.79750886]
[1642208239768,0.001,43134.0,43131.0,0.00125538]
[1642208239970,0.001,43134.0,43132.0,0.49778226]
[1642208240167,0.001,43134.0,43133.0,0.30535838]
[1642208240364,0.00909091,43142.0,43133.0,0.72780138]
[1642208240565,0.00909091,43142.0,43141.0,0.00120211]
[1642208240766,0.00909091,43142.0,43141.0,0.36249995]
[1642208241167,0.00909091,43142.0,43141.0,0.79874295]
[1642208241365,0.001,43149.0,43141.0,0.79874295]
[1642208241569,0.001,43149.0,43142.0,0.30535838]
[1642208241766,0.001,43149.0,43141.0,0.42249995]
[1642208242366,0.001,43149.0,43145.0,0.33812421]
[1642208243412,0.001,43149.0,43148.0,2.98225493]
[1642208244412,0.001,43149.0,43148.0,0.42622247]
[1642208245614,0.001,43149.0,43148.0,0.42628952]
[1642208246316,0.301,43149.0,43148.0,0.42628952]
[1642208246557,0.001,43149.0,43148.0,0.42628952]
[1642208246956,0.001,43149.0,43148.0,0.49251092]
[1642208247366,0.48719021,43151.0,43148.0,0.49251092]
[1642208247558,0.376243,43150.0,43148.0,0.49251092]
[1642208247759,1.55240216,43149.0,43148.0,0.49251092]
[1642208247962,1.97864516,43149.0,43148.0,0.06628845]
[1642208248160,2.02864516,43149.0,43148.0,0.06628845]
[1642208248358,2.53659816,43149.0,43148.0,0.06628845]
[1642208248660,2.08659816,43149.0,43148.0,0.06628845]
[1642208249158,0.83659816,43149.0,43148.0,0.06628845]
[1642208249360,0.426243,43149.0,43148.0,0.06628845]
[1642208249559,0.05,43149.0,43148.0,0.06628845]
[1642208249760,0.01105351,43154.0,43148.0,0.06628845]
[1642208250213,0.376243,43153.0,43148.0,0.06628845]
[1642208250415,0.33531819,43150.0,43148.0,0.06628845]
[1642208250614,1.42303379,43149.0,43148.0,0.06628845]
[1642208251014,1.52303379,43149.0,43148.0,0.06628845]
[1642208251219,1.89927679,43149.0,43148.0,0.06628845]
[1642208251414,1.626243,43149.0,43148.0,0.06628845]
[1642208252014,0.476243,43149.0,43148.0,0.13250985]
[1642208252214,0.1,43149.0,43148.0,0.19873125]
[1642208252414,0.33531819,43150.0,43148.0,0.19873125]
[1642208252415,0.70503856,43150.0,43148.0,0.19873125]
[1642208252618,1.22069625,43149.0,43148.0,0.19873125]
[1642208252815,0.95,43149.0,43148.0,0.19873125]
[1642208253815,1.27862452,43149.0,43148.0,0.19873125]
[1642208254452,0.95,43149.0,43148.0,0.19873125]
[1642208255757,1.60311995,43149.0,43148.0,0.19873125]
[1642208256756,1.64931995,43149.0,43148.0,0.19873125]
[1642208257155,2.09931995,43149.0,43148.0,0.19873125]
[1642208258004,1.64931995,43149.0,43148.0,0.19873125]
[1642208258503,1.67231995,43149.0,43148.0,0.19873125]
[1642208259704,1.64931995,43149.0,43148.0,0.19873125]
[1642208260506,1.67431995,43149.0,43148.0,0.19873125]
[1642208261764,1.64931995,43149.0,43148.0,0.19873125]
[1642208261967,0.422443,43149.0,43148.0,0.19873125]
[1642208262167,0.0462,43149.0,43148.0,0.19873125]
[1642208262366,0.05,43153.0,43148.0,0.19873125]
[1642208262567,1.271,43149.0,43148.0,0.19873125]
[1642208262769,1.647243,43149.0,43148.0,0.19873125]
[1642208263169,1.705197,43149.0,43148.0,0.19873125]
[1642208263569,2.02464189,43149.0,43148.0,0.19873125]
[1642208263769,1.95364189,43149.0,43148.0,0.19873125]
[1642208264572,1.98064189,43149.0,43148.0,0.19873125]
[1642208265225,2.07684189,43149.0,43148.0,0.19873125]
[1642208265923,2.04984189,43149.0,43148.0,0.19873125]
[1642208266524,2.07384189,43149.0,43148.0,0.19873125]
[1642208266926,0.546443,43149.0,43148.0,0.19873125]
[1642208267925,0.81846408,43149.0,43148.0,0.19873125]
[1642208268125,1.64914652,43149.0,43148.0,0.19873125]
[1642208268527,0.636443,43149.0,43148.0,0.19873125]
[1642208269151,0.936443,43149.0,43148.0,0.19873125]
[1642208269653,1.20951631,43149.0,43148.0,0.19873125]
[1642208269853,1.37582231,43149.0,43148.0,0.19873125]
[1642208270054,1.32582231,43149.0,43148.0,0.19873125]
[1642208270254,1.37582231,43149.0,43148.0,0.19873125]
[1642208270454,1.38184556,43149.0,43148.0,0.19873125]
[1642208270655,1.50084556,43149.0,43148.0,0.19873125]
[1642208271757,1.38184556,43149.0,43148.0,0.19873125]
[1642208272557,1.49884556,43149.0,43148.0,0.19873125]
[1642208273908,1.38184556,43149.0,43148.0,0.19873125]
[1642208274709,1.40784556,43149.0,43148.0,0.19873125]
[1642208275512,1.51336938,43149.0,43148.0,0.19873125]
[1642208275911,2.66336938,43149.0,43148.0,0.19873125]
[1642208276114,2.76336938,43149.0,43148.0,0.19873125]
[1642208276311,1.46336938,43149.0,43148.0,0.19873125]
[1642208276554,1.35684556,43149.0,43148.0,0.19873125]
[1642208276954,1.03377225,43149.0,43148.0,0.19873125]
[1642208277755,0.72846625,43149.0,43148.0,0.19873125]
[1642208278155,1.0017571,43149.0,43148.0,0.19873125]
[1642208278358,1.0517571,43149.0,43148.0,0.19873125]
[1642208278556,1.0807571,43149.0,43148.0,0.19873125]
[1642208278761,0.50746625,43149.0,43148.0,0.19873125]
[1642208278957,0.45746625,43149.0,43148.0,0.19873125]
[1642208279157,0.46126625,43149.0,43148.0,0.19873125]
[1642208279357,0.51126625,43149.0,43148.0,0.19873125]
[1642208279858,0.46126625,43149.0,43148.0,0.19873125]
[1642208280057,0.38226625,43149.0,43148.0,0.19873125]
[1642208282716,0.47929826,43149.0,43148.0,0.19873125]
[1642208282917,1.57929826,43149.0,43148.0,0.19873125]
[1642208283115,1.62929826,43149.0,43148.0,0.19873125]
[1642208283816,0.92929826,43149.0,43148.0,0.19873125]
[1642208284057,0.87929826,43149.0,43148.0,0.19873125]
[1642208284255,1.15161592,43149.0,43148.0,0.19873125]
[1642208284555,1.28657092,43149.0,43148.0,0.19873125]
[1642208285357,1.18953891,43149.0,43148.0,0.19873125]
[1642208285959,1.16253891,43149.0,43148.0,0.19873125]
[1642208286560,1.18553891,43149.0,43148.0,0.19873125]
[1642208286857,0.91322125,43149.0,43148.0,0.19873125]
[1642208287159,0.56322125,43149.0,43148.0,0.19873125]
[1642208287910,0.89022125,43149.0,43148.0,0.19873125]
[1642208288611,0.91322125,43149.0,43148.0,0.19873125]
[1642208289411,1.18689979,43149.0,43148.0,0.19873125]
[1642208290011,1.16389979,43149.0,43148.0,0.19873125]
[1642208290611,1.18689979,43149.0,43148.0,0.19873125]
[1642208290812,1.53689979,43149.0,43148.0,0.19873125]
[1642208291011,1.18689979,43149.0,43148.0,0.19873125]
[1642208291658,1.33309979,43149.0,43148.0,0.19873125]
[1642208291860,1.31009979,43149.0,43148.0,0.19873125]
[1642208292059,0.86009979,43149.0,43148.0,0.19873125]
[1642208292662,0.97708378,43149.0,43148.0,0.19873125]
[1642208292858,1.72708378,43149.0,43148.0,0.19873125]
[1642208293059,1.63409979,43149.0,43148.0,0.19873125]
[1642208293259,0.88409979,43149.0,43148.0,0.19873125]
[1642208293459,0.82614479,43149.0,43148.0,0.19873125]
[1642208293760,1.42614479,43149.0,43148.0,0.19873125]
[1642208293959,1.40214479,43149.0,43148.0,0.19873125]
[1642208294666,1.42814479,43149.0,43148.0,0.19873125]
[1642208295522,0.82814479,43149.0,43148.0,0.19873125]
[1642208295924,0.80214479,43149.0,43148.0,0.19873125]
[1642208296425,0.75214479,43149.0,43148.0,0.19873125]
[1642208296626,0.77814479,43149.0,43148.0,0.19873125]
[1642208296823,1.07814479,43149.0,43148.0,0.19873125]
[1642208297824,1.05214479,43149.0,43148.0,0.19873125]
[1642208298225,1.10214479,43149.0,43148.0,0.19873125]
[1642208298626,1.12814479,43149.0,43148.0,0.19873125]
[1642208298827,0.85446625,43149.0,43148.0,0.19873125]
[1642208299961,0.82846625,43149.0,43148.0,0.19873125]
[1642208300762,0.85446625,43149.0,43148.0,0.19873125]
[1642208301964,0.82846625,43149.0,43148.0,0.19873125]
[1642208302820,1.12318489,43149.0,43148.0,0.19873125]
[1642208303730,2.22318489,43149.0,43148.0,0.19873125]
[1642208303923,2.80299474,43149.0,43148.0,0.19873125]
[1642208304124,3.38039474,43149.0,43148.0,0.19873125]
[1642208304622,3.40339474,43149.0,43148.0,0.19873125]
[1642208305524,3.36839474,43149.0,43148.0,0.19873125]
[1642208305723,3.0846761,43149.0,43148.0,0.19873125]
[1642208305922,4.2916761,43149.0,43148.0,0.19873125]
[1642208306559,3.0616761,43149.0,43148.0,0.19873125]
[1642208306760,3.0846761,43149.0,43148.0,0.19873125]
[1642208307364,3.1346761,43149.0,43148.0,0.19873125]
[1642208307862,1.9346761,43149.0,43148.0,0.19873125]
[1642208308061,2.0116761,43149.0,43148.0,0.19873125]
[1642208308661,2.5956761,43149.0,43148.0,0.19873125]
[1642208309264,2.0456761,43149.0,43148.0,0.19873125]
[1642208309563,2.4956761,43149.0,43148.0,0.19873125]
[1642208310316,1.9456761,43149.0,43148.0,0.19873125]
[1642208310516,1.8116761,43149.0,43148.0,0.19873125]
[1642208310718,1.8466761,43149.0,43148.0,0.19873125]
[1642208311518,2.1966761,43149.0,43148.0,0.19873125]
[1642208311718,2.2466761,43149.0,43148.0,0.19873125]
[1642208311917,1.8966761,43149.0,43148.0,0.19873125]
[1642208312317,1.5966761,43149.0,43148.0,0.19873125]
[1642208312521,1.5616761,43149.0,43148.0,0.19873125]
[1642208312724,1.6026761,43149.0,43148.0,0.19873125]
[1642208312919,1.59686625,43149.0,43148.0,0.19873125]
[1642208313119,1.01946625,43149.0,43148.0,0.19873125]
[1642208313421,0.97326625,43149.0,43148.0,0.19873125]
[1642208315371,0.96826625,43149.0,43148.0,0.1986642]
[1642208315665,0.46826625,43149.0,43148.0,0.1986642]
[1642208316066,0.43226625,43149.0,43148.0,0.1986642]
[1642208316766,0.460243,43149.0,43148.0,0.1986642]
[1642208317166,0.410243,43149.0,43148.0,0.1986642]
[1642208317565,0.410243,43149.0,43148.0,0.19873125]
[1642208318017,0.5,43153.0,43148.0,0.19873125]
[1642208318215,0.376243,43152.0,43148.0,0.19873125]
[1642208318617,0.426243,43152.0,43148.0,0.19873125]
[1642208320817,0.471243,43152.0,43148.0,0.19873125]
[1642208321965,0.426243,43152.0,43148.0,0.19873125]
[1642208322866,0.472243,43152.0,43148.0,0.19873125]
[1642208323268,0.422243,43152.0,43148.0,0.19873125]
[1642208324067,0.376243,43152.0,43148.0,0.19873125]
[1642208325520,0.376243,43152.0,43148.0,0.46359377]
[1642208325716,0.066,43155.0,43148.0,0.46359377]
[1642208325918,0.376243,43154.0,43148.0,0.46359377]
[1642208326716,0.376243,43154.0,43148.0,0.19873125]
[1642208328523,0.434188,43154.0,43148.0,0.19873125]
[1642208330275,0.376243,43154.0,43148.0,0.19873125]
[1642208330476,0.28547225,43155.0,43148.0,0.19873125]
[1642208330877,0.36947225,43155.0,43148.0,0.19873125]
[1642208332079,0.28547225,43155.0,43148.0,0.19873125]
[1642208332279,0.376243,43154.0,43148.0,0.19873125]
[1642208333112,0.37047225,43155.0,43148.0,0.19873125]
[1642208333312,0.34547225,43155.0,43148.0,0.19873125]
[1642208334015,0.26047225,43155.0,43148.0,0.19873125]
[1642208341917,0.26047225,43155.0,43154.0,0.38932254]
[1642208342114,0.26047225,43155.0,43154.0,0.38432254]
[1642208342115,1.38671525,43155.0,43154.0,0.38432254]
[1642208342314,0.63671525,43155.0,43154.0,0.38432254]
[1642208342615,0.63671525,43155.0,43148.0,0.19873125]
[1642208342814,0.31447225,43155.0,43148.0,0.19873125]
[1642208343617,0.31447225,43155.0,43153.0,0.43615926]
[1642208343822,0.676243,43154.0,43153.0,0.43615926]
[1642208344062,0.376243,43154.0,43153.0,0.43615926]
[1642208356719,0.426243,43154.0,43153.0,0.43615926]
[1642208357620,0.376243,43154.0,43153.0,0.43615926]
[1642208358427,0.426243,43154.0,43153.0,0.43615926]
[1642208358625,0.376243,43154.0,43153.0,0.43615926]
[1642208359468,0.057,43155.0,43153.0,0.43615926]
[1642208360067,0.003,43157.0,43153.0,0.43615926]
[1642208360267,0.376243,43156.0,43153.0,0.43615926]
[1642208360468,0.003,43157.0,43153.0,0.43615926]
[1642208361468,0.003,43157.0,43154.0,0.27318256]
[1642208361668,0.003,43157.0,43153.0,0.43615926]
[1642208363941,0.003,43157.0,43154.0,0.27462109]
[1642208364142,0.003,43157.0,43153.0,0.43615926]
[1642208364342,0.003,43157.0,43154.0,0.28263921]
[1642208364747,0.003,43157.0,43155.0,0.28241832]
[1642208365345,0.003,43157.0,43156.0,0.28107628]
[1642208366672,0.003,43157.0,43155.0,0.28241832]
[1642208371014,0.003,43157.0,43155.0,0.5988864]
[1642208372014,0.003,43157.0,43155.0,0.28241832]
[1642208373418,0.002,43158.0,43157.0,0.9632214]
[1642208376880,0.002,43158.0,43157.0,3.9632214]
[1642208378617,0.00509091,43161.0,43157.0,3.9632214]
[1642208378816,0.29722291,43164.0,43157.0,3.9632214]
[1642208379018,0.29722291,43164.0,43162.0,0.38571637]
[1642208379218,0.057932,43164.0,43162.0,0.38571637]
[1642208380921,0.057932,43164.0,43159.0,0.05]
[1642208381121,0.057937,43162.0,43159.0,0.05]
[1642208381324,0.0462,43161.0,43159.0,0.05]
[1642208381574,0.0962,43161.0,43159.0,0.05]
[1642208381773,0.2400376,43160.0,43159.0,0.05]
[1642208381976,0.2862376,43160.0,43159.0,0.05]
[1642208382173,0.55579915,43160.0,43159.0,0.05]
[1642208382975,0.58379915,43160.0,43159.0,0.05]
[1642208383375,0.34376155,43160.0,43159.0,0.05]
[1642208384675,0.31576155,43160.0,43159.0,0.05]
[1642208387324,0.69200455,43160.0,43159.0,0.05]
[1642208387524,0.95530628,43160.0,43159.0,0.05]
[1642208387726,0.79101375,43160.0,43159.0,0.05]
[1642208387925,1.06167962,43160.0,43159.0,0.05]
[1642208388330,0.79101375,43160.0,43159.0,0.05]
[1642208388969,0.81801375,43160.0,43159.0,0.05]
[1642208389469,1.10932742,43160.0,43159.0,0.05]
[1642208390071,1.01031822,43160.0,43159.0,0.05]
[1642208390369,1.66071822,43160.0,43159.0,0.05]
[1642208390974,1.68971822,43160.0,43159.0,0.05]
[1642208391170,1.68971822,43160.0,43157.0,3.9632214]
[1642208391171,0.1738753,43159.0,43157.0,3.9632214]
[1642208391372,3.33328835,43158.0,43157.0,3.9632214]
[1642208391572,3.49107754,43158.0,43157.0,3.9632214]
[1642208391972,3.75111154,43158.0,43157.0,3.9632214]
[1642208392372,4.97911154,43158.0,43157.0,3.9632214]
[1642208393018,5.00211154,43158.0,43157.0,3.9632214]
[1642208393419,5.00211154,43158.0,43148.0,0.1986642]
[1642208393420,2.313303,43157.0,43148.0,0.1986642]
[1642208393627,0.5774,43150.0,43148.0,0.1986642]
[1642208393822,0.42357689,43149.0,43148.0,0.1986642]
[1642208394022,0.43020751,43149.0,43148.0,0.1986642]
[1642208394422,0.67440228,43149.0,43148.0,0.1986642]
[1642208394922,0.69940228,43149.0,43148.0,0.1986642]
[1642208395325,1.92740228,43149.0,43148.0,0.1986642]
[1642208395525,0.23188268,43148.0,43145.0,0.0662214]
[1642208395725,1.011612,43146.0,43145.0,0.0662214]
[1642208395928,1.43850256,43146.0,43145.0,0.0662214]
[1642208396229,0.00127913,43139.0,43130.0,0.87459536]
[1642208396476,0.0462,43138.0,43129.0,0.58359536]
[1642208396674,0.3022216,43137.0,43129.0,0.58359536]
[1642208396874,0.057976,43132.0,43129.0,0.58359536]
[1642208397075,0.0462,43131.0,43129.0,0.58359536]
[1642208397675,0.31988135,43131.0,43129.0,0.58359536]
[1642208397876,0.0462,43131.0,43128.0,0.0662214]
[1642208398274,0.376243,43130.0,43128.0,0.0662214]
[1642208398476,0.0462,43129.0,43128.0,0.0662214]
[1642208398676,0.422443,43129.0,43128.0,0.0662214]
[1642208399077,0.422443,43129.0,43128.0,0.50008366]
[1642208399881,0.0462,43129.0,43128.0,0.50008366]
[1642208402120,0.0462,43129.0,43128.0,0.83835819]
[1642208402320,0.0462,43136.0,43128.0,1.12219271]
[1642208403119,0.0462,43136.0,43128.0,0.83835819]
[1642208404172,0.0462,43136.0,43130.0,0.25207587]
[1642208404377,0.0462,43136.0,43135.0,0.33137937]
[1642208404770,0.05,43139.0,43135.0,0.33137937]
[1642208404971,0.029,43139.0,43135.0,0.33137937]
[1642208405370,0.029,43139.0,43137.0,0.12]
[1642208405970,0.01392521,43138.0,43137.0,0.12]
[1642208408423,0.01392521,43138.0,43136.0,0.42193942]
[1642208409027,0.01392521,43141.0,43136.0,0.42193942]
[1642208409626,0.06416262,43139.0,43136.0,0.42193942]
[1642208410229,0.06416262,43139.0,43137.0,0.12]
[1642208412173,0.01392521,43138.0,43137.0,0.12]
[1642208414779,0.04600652,43138.0,43137.0,0.12]
[1642208414979,0.07808783,43138.0,43137.0,0.12]
[1642208415225,0.06416262,43138.0,43136.0,0.42193942]
[1642208415427,0.25618489,43137.0,43136.0,0.42193942]
[1642208415631,0.06416262,43138.0,43136.0,0.42193942]
[1642208418232,0.01392521,43137.0,43136.0,0.42193942]
[1642208420277,0.07808783,43137.0,43136.0,0.42193942]
[1642208421279,0.07808783,43137.0,43136.0,0.70892284]
[1642208421576,0.07808783,43137.0,43136.0,0.42193942]
[1642208421777,0.07808783,43137.0,43136.0,0.74927129]
[1642208422380,0.07808783,43137.0,43136.0,1.03505957]
[1642208422581,0.3078351,43145.0,43137.0,1.05]
[1642208422582,0.0012351,43145.0,43137.0,1.05]
[1642208422839,3.48692538,43151.0,43139.0,0.05794591]
[1642208422840,2.28732538,43151.0,43139.0,0.05794591]
[1642208423042,0.007,43146.0,43140.0,0.32303244]
[1642208423638,0.007,43146.0,43141.0,0.28455159]
[1642208423837,0.007,43146.0,43145.0,0.42358549]
[1642208424238,0.30225832,43149.0,43145.0,0.42358549]
[1642208424439,0.376243,43148.0,43145.0,0.42358549]
[1642208424842,0.30225832,43149.0,43145.0,0.42358549]
[1642208424843,0.35225832,43149.0,43145.0,0.42358549]
[1642208425043,0.40825832,43149.0,43145.0,0.42358549]
[1642208426241,0.376243,43148.0,43145.0,0.42358549]
[1642208427073,0.376243,43148.0,43145.0,0.41858549]
[1642208427877,0.376243,43148.0,43141.0,0.28455159]
[1642208428075,0.434198,43148.0,43141.0,0.28455159]
[1642208428275,0.376243,43148.0,43142.0,0.27267074]
[1642208428476,0.376243,43148.0,43142.0,0.27134692]
[1642208428675,0.376243,43148.0,43141.0,0.28455159]
[1642208429175,0.426243,43148.0,43143.0,0.3950211]
[1642208429375,0.376243,43148.0,43143.0,0.3950211]
[1642208429576,0.33925832,43149.0,43143.0,0.3950211]
[1642208429977,0.037,43149.0,43143.0,0.3950211]
[1642208430264,0.03569678,43153.0,43143.0,0.3950211]
[1642208430462,0.421243,43152.0,43143.0,0.3950211]
[1642208430863,0.371243,43152.0,43143.0,0.3950211]
[1642208431061,0.413243,43152.0,43143.0,0.3950211]
[1642208431261,0.413243,43152.0,43150.0,0.26109839]
[1642208431861,0.413243,43152.0,43151.0,0.40194005]
[1642208432464,0.413243,43152.0,43151.0,0.67479052]
[1642208432662,0.413243,43152.0,43151.0,0.40194005]
[1642208432867,0.371243,43152.0,43151.0,0.40194005]
[1642208433065,0.408243,43152.0,43151.0,0.40194005]
[1642208433263,0.40832832,43152.0,43151.0,0.40194005]
[1642208434573,0.37132832,43152.0,43151.0,0.40194005]
[1642208434973,8.532e-05,43152.0,43151.0,0.40194005]
[1642208436774,8.532e-05,43152.0,43150.0,0.26109839]
[1642208436976,8.532e-05,43152.0,43145.0,1.68544495]
[1642208438028,8.532e-05,43152.0,43146.0,0.27300335]
[1642208438225,8.532e-05,43152.0,43148.0,0.4513829]
[1642208445224,8.532e-05,43152.0,43150.0,0.188754]
[1642208446724,8.532e-05,43152.0,43151.0,0.99148896]
[1642208447124,8.532e-05,43152.0,43151.0,1.36747196]
[1642208447324,8.532e-05,43152.0,43151.0,1.4536113]
[1642208447523,8.532e-05,43152.0,43151.0,1.77398035]
[1642208448124,8.532e-05,43152.0,43151.0,1.83190135]
[1642208449181,8.532e-05,43152.0,43151.0,1.85990135]
[1642208450477,8.532e-05,43152.0,43151.0,1.83190135]
[1642208451081,8.532e-05,43152.0,43151.0,1.96190135]
[1642208451778,8.532e-05,43152.0,43151.0,1.77041239]
[1642208452380,8.532e-05,43152.0,43151.0,1.74041239]
[1642208452579,8.532e-05,43152.0,43151.0,1.69041239]
[1642208452827,8.532e-05,43152.0,43151.0,1.64041239]
[1642208453328,8.532e-05,43152.0,43151.0,2.25900775]
[1642208453731,8.532e-05,43152.0,43151.0,1.2386387]
[1642208453929,8.532e-05,43152.0,43151.0,0.57015334]
[1642208454330,8.532e-05,43152.0,43151.0,0.43515334]
[1642208454730,8.532e-05,43152.0,43151.0,0.74630652]
[1642208454930,8.532e-05,43152.0,43151.0,1.04630652]
[1642208455130,8.532e-05,43152.0,43151.0,1.12130652]
[1642208455731,8.532e-05,43152.0,43151.0,0.51015334]
[1642208455930,8.532e-05,43152.0,43151.0,0.91015334]
[1642208456332,8.532e-05,43152.0,43151.0,0.83515334]
[1642208456778,8.532e-05,43152.0,43151.0,0.43515334]
[1642208456978,8.532e-05,43152.0,43151.0,1.23515334]
[1642208457181,8.532e-05,43152.0,43151.0,1.35415334]
[1642208457578,8.532e-05,43152.0,43151.0,0.65415334]
[1642208458379,8.532e-05,43152.0,43151.0,0.53515334]
[1642208458983,8.532e-05,43152.0,43151.0,0.88515334]
[1642208459180,8.532e-05,43152.0,43151.0,0.67015334]
[1642208459581,8.532e-05,43152.0,43151.0,0.57015334]
[1642208460427,8.532e-05,43152.0,43151.0,0.51223234]
[1642208460829,8.532e-05,43152.0,43151.0,1.14020589]
[1642208461029,8.532e-05,43152.0,43151.0,1.00520589]
[1642208461230,8.532e-05,43152.0,43151.0,1.14020589]
[1642208463030,8.532e-05,43152.0,43151.0,1.00520589]
[1642208463230,8.532e-05,43152.0,43151.0,0.84220589]
[1642208463631,8.532e-05,43152.0,43151.0,0.94220589]
[1642208463833,8.532e-05,43152.0,43151.0,1.94220589]
[1642208464494,8.532e-05,43152.0,43151.0,1.80520589]
[1642208464695,8.532e-05,43152.0,43151.0,0.95520589]
[1642208464895,8.532e-05,43152.0,43151.0,0.37723234]
[1642208465295,8.532e-05,43152.0,43151.0,0.59723234]
[1642208465895,8.532e-05,43152.0,43151.0,1.89152828]
[1642208466499,1.0,43161.0,43152.0,1.85]
[1642208466700,1.0,43161.0,43160.0,0.00122962]
[1642208466701,0.09048497,43161.0,43160.0,0.00122962]
[1642208466903,0.001,43167.0,43160.0,0.37721262]
[1642208467099,0.001,43167.0,43161.0,0.28810079]
[1642208467399,0.001,43167.0,43162.0,0.33939413]
[1642208467599,0.001,43167.0,43163.0,0.057911]
[1642208467838,0.001,43167.0,43162.0,0.80678143]
[1642208468037,0.001,43167.0,43162.0,0.69096175]
[1642208471142,0.001,43167.0,43162.0,0.71496175]
[1642208472384,0.001,43167.0,43162.0,0.69096175]
[1642208473282,0.001,43167.0,43162.0,0.71496175]
[1642208473483,0.001,43167.0,43162.0,0.77287575]
[1642208473783,0.001,43167.0,43162.0,0.71496175]
[1642208474383,0.001,43167.0,43162.0,0.69096175]
[1642208474583,0.001,43167.0,43163.0,0.27180653]
[1642208474786,0.001,43167.0,43162.0,0.69096175]
[1642208475230,0.001,43167.0,43162.0,0.70896175]
[1642208475730,0.001,43167.0,43162.0,0.36956762]
[1642208475930,0.001,43167.0,43162.0,0.018]
[1642208476131,0.375983,43165.0,43162.0,0.018]
[1642208476633,0.375983,43165.0,43152.0,0.29257488]
[1642208476832,0.44506673,43166.0,43152.0,0.85223684]
[1642208477032,0.38713673,43166.0,43157.0,0.44082116]
[1642208477231,0.070927,43166.0,43157.0,0.44082116]
[1642208477835,0.2975384,43163.0,43157.0,0.44082116]
[1642208478232,0.2975384,43163.0,43159.0,0.33803141]
[1642208478835,0.2975384,43163.0,43157.0,0.44082116]
[1642208479273,0.3475384,43163.0,43157.0,0.48982116]
[1642208479874,0.3475384,43163.0,43157.0,0.73761175]
[1642208480677,0.2975384,43163.0,43157.0,0.73761175]
[1642208480876,0.3437384,43163.0,43157.0,0.73761175]
[1642208481076,0.3437384,43163.0,43157.0,0.68861175]
[1642208481277,0.0462,43163.0,43157.0,0.75061175]
[1642208481876,0.0462,43163.0,43157.0,0.80853275]
[1642208482076,0.0462,43163.0,43157.0,0.75061175]
[1642208482279,0.33665738,43162.0,43157.0,0.75061175]
[1642208482478,0.33665738,43162.0,43157.0,0.68861175]
[1642208482925,0.0462,43163.0,43157.0,0.68861175]
[1642208483128,0.001,43166.0,43158.0,0.27676094]
[1642208483328,0.001,43166.0,43158.0,0.33631748]
[1642208483526,0.001,43166.0,43158.0,0.33311695]
[1642208483926,0.32217617,43165.0,43164.0,0.32792769]
[1642208484125,0.001,43166.0,43164.0,0.32792769]
[1642208484727,0.001,43166.0,43155.0,0.30423722]
[1642208486226,0.001,43166.0,43158.0,0.26735048]
[1642208486678,0.34424199,43161.0,43158.0,0.26735048]
[1642208488379,0.34424199,43161.0,43155.0,0.3483645]
[1642208489580,0.34424199,43161.0,43157.0,0.32357956]
[1642208490328,0.012,43163.0,43157.0,0.32357956]
[1642208490521,0.2862,43166.0,43157.0,0.32357956]
[1642208490921,0.2862,43166.0,43160.0,0.18871]
[1642208491122,0.001,43166.0,43165.0,0.2506575]
[1642208491322,0.376983,43166.0,43165.0,0.2506575]
[1642208493123,0.376983,43166.0,43160.0,0.467266]
[1642208493124,0.6836348,43166.0,43160.0,0.467266]
[1642208493322,0.6836348,43166.0,43160.0,0.18871]
[1642208493723,0.7994928,43166.0,43160.0,0.18871]
[1642208494182,0.7415628,43166.0,43160.0,0.18871]
[1642208495180,0.7635628,43166.0,43160.0,0.18871]
[1642208495583,0.057933,43164.0,43160.0,0.18871]
[1642208495781,0.057934,43163.0,43160.0,0.18871]
[1642208496384,0.3296518,43166.0,43160.0,0.18871]
[1642208496581,0.375983,43165.0,43160.0,0.18871]
[1642208497383,0.433913,43165.0,43160.0,0.18871]
[1642208499331,0.455913,43165.0,43160.0,0.18871]
[1642208500636,0.433913,43165.0,43160.0,0.18871]
[1642208501236,0.466913,43165.0,43160.0,0.18871]
[1642208502477,0.433913,43165.0,43160.0,0.18871]
[1642208502877,0.104132,43164.0,43160.0,0.18871]
[1642208503078,0.43392,43163.0,43160.0,0.18871]
[1642208503379,0.0462,43162.0,43160.0,0.18871]
[1642208503576,0.375983,43161.0,43160.0,0.18871]
[1642208503777,0.422183,43161.0,43160.0,0.18871]
[1642208505222,0.444183,43161.0,43160.0,0.18871]
[1642208506424,0.422183,43161.0,43160.0,0.18871]
[1642208507222,0.449183,43161.0,43160.0,0.18871]